{"text_format":"3","workbook":"xlsx","n_sheets":2,"sheets":["VÆKSTDATA","VÆKSTDIAGRAM"],"not_rendered":{"charts":1,"defined_names":3},"read":"whole","date_system":"1900"}

{"sheet":"VÆKSTDATA","index":0,"n_rows":23,"n_cols":8,"rows_kept":23,"merged":[[0,1,0,7],[1,2,1,7]]}
[null,"Barnets vækst "]
[null,"Barnets navn:","Navn"]
[null,"Alder","Kg","Gram","Vægt (g)","Vægt Fraktil","Længde (cm)","Længde Fraktil"]
[null,"Ved fødsel",7,null,{"$f":"IF(COUNT(Data[[#This Row],[Kg]:[Gram]])>0,Data[[#This Row],[Kg]]+(Data[[#This Row],[Gram]]/16),NA())","v":7},40,19.5,70]
[null,"4 dage",6,8,{"$f":"IF(COUNT(Data[[#This Row],[Kg]:[Gram]])>0,Data[[#This Row],[Kg]]+(Data[[#This Row],[Gram]]/16),NA())","v":6.5},41,19.5,70]
[null,"7 dage",6,4.8,{"$f":"IF(COUNT(Data[[#This Row],[Kg]:[Gram]])>0,Data[[#This Row],[Kg]]+(Data[[#This Row],[Gram]]/16),NA())","v":6.3},42,20,71]
[null,"11 dage",6,9.6,{"$f":"IF(COUNT(Data[[#This Row],[Kg]:[Gram]])>0,Data[[#This Row],[Kg]]+(Data[[#This Row],[Gram]]/16),NA())","v":6.6},43,20,71]
[null,"14 dage",7,null,{"$f":"IF(COUNT(Data[[#This Row],[Kg]:[Gram]])>0,Data[[#This Row],[Kg]]+(Data[[#This Row],[Gram]]/16),NA())","v":7},44,20,71]
[null,"18 dage",7,12,{"$f":"IF(COUNT(Data[[#This Row],[Kg]:[Gram]])>0,Data[[#This Row],[Kg]]+(Data[[#This Row],[Gram]]/16),NA())","v":7.75},45,21,72]
[null,"21 dage",8,8,{"$f":"IF(COUNT(Data[[#This Row],[Kg]:[Gram]])>0,Data[[#This Row],[Kg]]+(Data[[#This Row],[Gram]]/16),NA())","v":8.5},46,21,72]
[null,"25 dage",null,null,{"$f":"IF(COUNT(Data[[#This Row],[Kg]:[Gram]])>0,Data[[#This Row],[Kg]]+(Data[[#This Row],[Gram]]/16),NA())","v":{"$error":"#N/A"}}]
[null,"28 dage",null,null,{"$f":"IF(COUNT(Data[[#This Row],[Kg]:[Gram]])>0,Data[[#This Row],[Kg]]+(Data[[#This Row],[Gram]]/16),NA())","v":{"$error":"#N/A"}}]
[null,"5 uger",null,null,{"$f":"IF(COUNT(Data[[#This Row],[Kg]:[Gram]])>0,Data[[#This Row],[Kg]]+(Data[[#This Row],[Gram]]/16),NA())","v":{"$error":"#N/A"}}]
[null,"6 uger",null,null,{"$f":"IF(COUNT(Data[[#This Row],[Kg]:[Gram]])>0,Data[[#This Row],[Kg]]+(Data[[#This Row],[Gram]]/16),NA())","v":{"$error":"#N/A"}}]
[null,"7 uger",null,null,{"$f":"IF(COUNT(Data[[#This Row],[Kg]:[Gram]])>0,Data[[#This Row],[Kg]]+(Data[[#This Row],[Gram]]/16),NA())","v":{"$error":"#N/A"}}]
[null,"2 måneder",null,null,{"$f":"IF(COUNT(Data[[#This Row],[Kg]:[Gram]])>0,Data[[#This Row],[Kg]]+(Data[[#This Row],[Gram]]/16),NA())","v":{"$error":"#N/A"}}]
[null,"3 måneder",null,null,{"$f":"IF(COUNT(Data[[#This Row],[Kg]:[Gram]])>0,Data[[#This Row],[Kg]]+(Data[[#This Row],[Gram]]/16),NA())","v":{"$error":"#N/A"}}]
[null,"6 måneder",null,null,{"$f":"IF(COUNT(Data[[#This Row],[Kg]:[Gram]])>0,Data[[#This Row],[Kg]]+(Data[[#This Row],[Gram]]/16),NA())","v":{"$error":"#N/A"}}]
[null,"9 måneder",null,null,{"$f":"IF(COUNT(Data[[#This Row],[Kg]:[Gram]])>0,Data[[#This Row],[Kg]]+(Data[[#This Row],[Gram]]/16),NA())","v":{"$error":"#N/A"}}]
[null,"12 måneder",null,null,{"$f":"IF(COUNT(Data[[#This Row],[Kg]:[Gram]])>0,Data[[#This Row],[Kg]]+(Data[[#This Row],[Gram]]/16),NA())","v":{"$error":"#N/A"}}]
[null,"18 måneder",null,null,{"$f":"IF(COUNT(Data[[#This Row],[Kg]:[Gram]])>0,Data[[#This Row],[Kg]]+(Data[[#This Row],[Gram]]/16),NA())","v":{"$error":"#N/A"}}]
[null,"24 måneder",null,null,{"$f":"IF(COUNT(Data[[#This Row],[Kg]:[Gram]])>0,Data[[#This Row],[Kg]]+(Data[[#This Row],[Gram]]/16),NA())","v":{"$error":"#N/A"}}]
[null,"36 måneder",null,null,{"$f":"IF(COUNT(Data[[#This Row],[Kg]:[Gram]])>0,Data[[#This Row],[Kg]]+(Data[[#This Row],[Gram]]/16),NA())","v":{"$error":"#N/A"}}]

{"sheet":"VÆKSTDIAGRAM","index":1,"n_rows":1,"n_cols":2,"rows_kept":1,"merged":[[0,1,1,1]]}
[null,"DIAGRAM OVER BARNETS VÆKST"]